Workbook

Sheet Exeter Borough
A1: Exeter Borough
A2: Year 2022 Budget Proposal
A3: 2021-12-07
B5: Year 2022 | D5: Year 2021 | F5: Year 2020
B6: Proposed Budget | D6: Budget | F6: Budget
A8: Income
A9: 20% Tax Revenue Transfer Street/Sidewalk | B9: 0 | D9: =-97200 -> -97200 | F9: =-97200 -> -97200
A10: ARPA Covid Revenue | B10: =289986 -> 289986
A11: Beginning Fund Balance | B11: 0 | D11: =500000.04 -> 500000.04 | F11: =369999.96 -> 369999.96
A12: Beverage License Revenue | B12: =2000.04 -> 2000.04 | D12: =3200.04 -> 3200.04 | F12: =3600 -> 3600
A13: Cable Revenue | B13: =95001 -> 95001 | D13: =90000 -> 90000 | F13: =87999.96 -> 87999.96
A14: Community Develop (CDBG Grants) | B14: =189000 -> 189000 | D14: =85000 -> 85000 | F14: =228000 -> 228000
A15: Contractor Registration Income | B15: =12000 -> 12000 | D15: =12000 -> 12000 | F15: =13500 -> 13500
A16: Earned Income Tax | B16: =500000.04 -> 500000.04 | D16: =480000 -> 480000 | F16: =510000 -> 510000
A17: Engineering Reimbursement | B17: =1749.96 -> 1749.96 | D17: =999.96 -> 999.96 | F17: =999.96 -> 999.96
A18: Fine District Magistrate Income | B18: =4800 -> 4800 | D18: =8000.04 -> 8000.04 | F18: =8000.04 -> 8000.04
A19: Gas Tax Refund | B19: =3999.96 -> 3999.96 | D19: =4036 -> 4036 | F19: =4656 -> 4656
A20: Insurance Rebate | B20: =5499.96 -> 5499.96 | D20: =3000 -> 3000 | F20: =3402.96 -> 3402.96
A21: Interest Income | B21: 1500 | D21: =1350 -> 1350 | F21: =500.04 -> 500.04
A22: LST Tax Revenue | B22: =84999.96 -> 84999.96 | D22: =87999.96 -> 87999.96 | F22: =98000.04 -> 98000.04
A23: Mechanical Device Tax Income | B23: =3399.96 -> 3399.96 | D23: =3399.96 -> 3399.96 | F23: =3699.96 -> 3699.96
A24: Misc Revenue Receipts | B24: =9999.96 -> 9999.96 | D24: =500.04 -> 500.04 | F24: =500.04 -> 500.04
A25: PA State Police Fines Income | B25: =2000.04 -> 2000.04 | D25: =2000.04 -> 2000.04 | F25: =2799.96 -> 2799.96
A26: Pave Cut Inspection Fee Income | B26: 0 | D26: =500.04 -> 500.04 | F26: =999.96 -> 999.96
A27: Payments in Lieu | B27: =1250.04 -> 1250.04 | D27: =1000 -> 1000 | F27: =1084.2 -> 1084.2
A28: Pension Fund Contributions | B28: =14000.04 -> 14000.04 | D28: =13600 -> 13600 | F28: =13443.96 -> 13443.96
A29: Police - Fire Alarm Activation Fee | B29: 0 | D29: =99.96 -> 99.96 | F29: =99.96 -> 99.96
A30: Police Restitution Income | B30: =2502 -> 2502 | D30: =5000.04 -> 5000.04 | F30: =6500.04 -> 6500.04
A31: Police Services | B31: 0
A32: Public Utility Tax Revenue | B32: =1250.04 -> 1250.04 | D32: =1236 -> 1236 | F32: =1181 -> 1181
A33: RE Tax Income - Current Year | B33: =600000 -> 600000 | D33: =486000 -> 486000 | F33: =486000 -> 486000
A34: RE Tax Income - Prior Year | B34: =39999.96 -> 39999.96 | D34: =42999.96 -> 42999.96 | F34: =45000 -> 45000
A35: Recycling - Income Grants | B35: 0 | F35: =20000.04 -> 20000.04
A36: Recycling 904 Grant Income | B36: =18000 -> 18000 | D36: =20000 -> 20000 | F36: =5000 -> 5000
A37: Refund of Prior Years Exp | B37: 0
A38: Reimbursement Cable Pave Cuts | B38: =999.96 -> 999.96 | D38: =2000.04 -> 2000.04 | F38: =2000.04 -> 2000.04
A39: Reimbursement Fireman's Relief Fund | B39: =27000 -> 27000 | D39: =27522 -> 27522 | F39: =27308.21 -> 27308.21
A40: Reimbursement PAWC Road Cuts | B40: =7500 -> 7500 | D40: =5000.04 -> 5000.04 | F40: =5000.04 -> 5000.04
A41: Reimbursement PFG Road Cuts | B41: =5000.04 -> 5000.04 | D41: =5000.04 -> 5000.04 | F41: =5000.04 -> 5000.04
A42: Reimbursement WVSA Storm Water | B42: =16695 -> 16695 | D42: =20000.04 -> 20000.04
A43: Rental WVSA Income | B43: =36000 -> 36000 | D43: =30000 -> 30000 | F43: =18000 -> 18000
A44: School Patrol Reimbursement | B44: =5000.04 -> 5000.04 | D44: =16687.56 -> 16687.56 | F44: =16400.04 -> 16400.04
A45: Sewer Hookup Permit Income | B45: =1010 -> 1010 | D45: =3030 -> 3030 | F45: =3030 -> 3030
A46: Vendor Fee Income | B46: 0 | D46: =500.04 -> 500.04
A47: Vendor Permit Income | B47: 0 | D47: =500.04 -> 500.04 | F47: =500.04 -> 500.04
A48: Water Company Reimbursement | B48: =3000 -> 3000 | D48: =2750.04 -> 2750.04 | F48: =2841 -> 2841
A49: Zoning/Bldg Occupancy Income | B49: =102000 -> 102000 | D49: =66000 -> 66000 | F49: =50000.04 -> 50000.04
A50: Total Income | B50: =SUM(B9:B49) -> 2087144 | D50: =SUM(D9:D49) -> 1933711.92 | F50: =SUM(F9:F49) -> 1947847.53
A52: Expenses
A54: Fire Department Expense
A55: Fire - Hose Co 1 Reimbursement | B55: =10400.04 -> 10400.04 | D55: =10400.04 -> 10400.04 | F55: =10400.04 -> 10400.04
A56: Total Fire Department Expense | B56: =SUM(B55) -> 10400.04 | D56: =SUM(D55) -> 10400.04 | F56: =SUM(F55) -> 10400.04
A58: General & Admin Expense
A59: Accounting Expense | B59: =5000.04 -> 5000.04 | D59: =5000.04 -> 5000.04 | F59: =5000.04 -> 5000.04
A60: ARPA COVID | B60: =65000.04 -> 65000.04
A61: Borrowed from Refuse | B61: 0 | D61: =22540.2 -> 22540.2 | F61: =22540.2 -> 22540.2
A62: Computer Expense G&A | B62: =1500 -> 1500 | D62: =1500 -> 1500 | F62: =1500 -> 1500
A63: CDBG/Engineering - Expense | B63: 36000 | D63: 0 | F63: =21000 -> 21000
A64: Fire Hydrants - Water | B64: =21000 -> 21000 | D64: =21000 -> 21000 | F64: =21000 -> 21000
A65: G&A Advertising | B65: =2000.04 -> 2000.04 | D65: =1700.04 -> 1700.04 | F65: =1700.04 -> 1700.04
A66: G&A Association Dues | B66: =5000.04 -> 5000.04 | D66: =4700.04 -> 4700.04 | F66: =4700.04 -> 4700.04
A67: G&A R&M | B67: =15000 -> 15000 | D67: =15000 -> 15000 | F67: =20000.04 -> 20000.04
A68: G&A Supplies & Materials | B68: =3500.04 -> 3500.04 | D68: =2000.04 -> 2000.04 | F68: =1800 -> 1800
A69: G&A Utilities | B69: =17000.04 -> 17000.04 | D69: =16500 -> 16500 | F69: =15999.96 -> 15999.96
A70: Hicks Creek R&M | B70: =35000.04 -> 35000.04 | D70: =42000 -> 42000 | F70: =31167 -> 31167
A71: Misc Grant Exp | B71: 0 | D71: =120999.96 -> 120999.96 | F71: =248000.04 -> 248000.04
A72: Miscellaneous | B72: =2000.04 -> 2000.04 | D72: =600 -> 600 | F72: =600 -> 600
A73: Office Supply | B73: 0 | D73: =300 -> 300 | F73: =300 -> 300
A74: Other Legal G&A | B74: =15000 -> 15000 | D74: =15000 -> 15000 | F74: =15000 -> 15000
A75: Parks & Recreation R&M | B75: =6000 -> 6000 | D75: =9500.04 -> 9500.04 | F75: =3500.04 -> 3500.04
A76: Payroll Processing Charge | B76: =3500.04 -> 3500.04 | D76: =3399.96 -> 3399.96 | F76: =3000 -> 3000
A77: Pension Expense (non uniform) | B77: =35499.96 -> 35499.96 | D77: =17435.76 -> 17435.76 | F77: =17000.04 -> 17000.04
A78: Postage G&A | B78: =999.96 -> 999.96 | D78: =800.04 -> 800.04 | F78: =800.04 -> 800.04
A79: Printing G&A | B79: =2000.04 -> 2000.04 | D79: =1790 -> 1790 | F79: =1792 -> 1792
A80: Pump Station Utilities | B80: =350.04 -> 350.04 | D80: =336 -> 336 | F80: =336 -> 336
A81: Solicitor Fees | B81: 19500 | D81: =24999.96 -> 24999.96 | F81: =24999.96 -> 24999.96
A82: SPCA | B82: =999.96 -> 999.96 | D82: =1500 -> 1500 | F82: =999.96 -> 999.96
A83: Total General & Admin Expense | B83: =SUM(B59:B82) -> 291850.32 | D83: =SUM(D59:D82) -> 328602.08 | F83: =SUM(F59:F82) -> 462735.4
A85: Insurance Expense
A86: Business Auto Insurance | B86: 0 | D86: =29163 -> 29163 | F86: =23972.04 -> 23972.04
A87: Commercial & General Liability | B87: =96447 -> 96447 | D87: =22059.96 -> 22059.96 | F87: =20244 -> 20244
A88: Crime/Cyber Insurance | B88: 0 | D88: =1547.04 -> 1547.04 | F88: =1530 -> 1530
A89: Employee Benefits Liability | B89: 0 | D89: =1782 -> 1782
A90: Errors & Omission Insurance | B90: 0 | D90: =19752 -> 19752 | F90: =20064 -> 20064
A91: Inland Marine Insurance | B91: 0 | D91: =7689.96 -> 7689.96 | F91: =7689.96 -> 7689.96
A92: Medical Insurance - Borough Manager | B92: =12620.04 -> 12620.04 | D92: =12999.96 -> 12999.96 | F92: =15000 -> 15000
A93: Medical Insurance - Police | B93: =38000.04 -> 38000.04 | D93: =26701.44 -> 26701.44 | F93: =36789 -> 36789
A94: Medical Insurance - Street | B94: =145500 -> 145500 | D94: =121940.04 -> 121940.04 | F94: =123594.96 -> 123594.96
A95: Municipal Liability Insurance | B95: 0 | D95: =1782 -> 1782 | F95: =1782 -> 1782
A96: Police Group Life & Disability | B96: =1014 -> 1014 | D96: =1014 -> 1014 | F96: =1014 -> 1014
A97: Police Professional Liability Insurance | B97: 0 | D97: =35799.96 -> 35799.96 | F97: =33320.04 -> 33320.04
A98: Police Workers Compensation (VFD) | B98: 0 | D98: =12344.04 -> 12344.04 | F98: =19574.04 -> 19574.04
A99: Public Officials Bond | B99: 0 | D99: =1782 -> 1782 | F99: =1782 -> 1782
A100: Treasurers Bond | D100: =484 -> 484 | F100: =484 -> 484
A101: Unemployment Compensation | B101: =14000.04 -> 14000.04 | D101: =15999.96 -> 15999.96 | F101: =17000.04 -> 17000.04
A102: Workers Comp Insurance | B102: 0 | D102: =27359.04 -> 27359.04 | F102: =27837 -> 27837
A103: Total Insurance Expense | B103: =SUM(B86:B102) -> 307581.12 | D103: =SUM(D86:D102) -> 340200.4 | F103: =SUM(F86:F102) -> 351677.08
A105: Payroll Expenses
A106: Hourly - Chief | B106: =50000.04 -> 50000.04 | D106: =56457.48 -> 56457.48 | F106: =45759.96 -> 45759.96
A107: Hourly - Clerical | B107: =21893.04 -> 21893.04 | D107: =13700.04 -> 13700.04 | F107: =13700.04 -> 13700.04
A108: Hourly - Fire Truck Drivers | B108: =74000.04 -> 74000.04 | D108: =74460 -> 74460 | F108: =74460 -> 74460
A109: Hourly - Full Time Police Officer | B109: =81999.96 -> 81999.96 | D109: =81080.4 -> 81080.4 | F109: =69999.96 -> 69999.96
A110: Hourly - Full Time Street/Recycling | B110: =219000 -> 219000 | D110: =208577.16 -> 208577.16 | F110: =186183.96 -> 186183.96
A111: Hourly - Janitoral | B111: =3000 -> 3000 | D111: =2724 -> 2724 | F111: =2724 -> 2724
A112: Hourly - P/T Street/Recycling | B112: =6000 -> 6000 | D112: =18303.96 -> 18303.96 | F112: =18303.96 -> 18303.96
A113: Hourly - Part Time Police Officer | B113: =99999.96 -> 99999.96 | D113: =143520 -> 143520 | F113: =125000.04 -> 125000.04
A114: Hourly - Refuse | B114: 10000 | D114: =9999.96 -> 9999.96 | F114: =9999.96 -> 9999.96
A115: Hourly - School Patrol | B115: =9999.96 -> 9999.96 | D115: =33375 -> 33375 | F115: =32799.96 -> 32799.96
A116: Hourly - Zoning Officer | B116: =30000 -> 30000 | D116: =30783.96 -> 30783.96 | F116: =30783.96 -> 30783.96
A117: Salary - Borough Manager | B117: =41694.96 -> 41694.96 | D117: =40505.16 -> 40505.16 | F117: =39325.44 -> 39325.44
A118: Salary - Grant Writer
A119: Salary - Co-Manager | B119: 0
A120: Salary - Council/Mayor | B120: =19200 -> 19200 | D120: =20000.04 -> 20000.04 | F120: =20000.04 -> 20000.04
A121: Salary - Mayor | B121: 0
A122: Salary - Recycling Coordinator | B122: =6000 -> 6000 | D122: =6000 -> 6000 | F122: =6000 -> 6000
A123: Salary - Tax Collector | B123: =6999.96 -> 6999.96 | D123: =6999.96 -> 6999.96 | F123: =6999.96 -> 6999.96
A124: Salary - Treasurer | B124: =6000 -> 6000
A125: Total Payroll Expenses | B125: =SUM(B106:B124) -> 685787.92 | D125: =SUM(D106:D124) -> 746487.12 | F125: =SUM(F106:F124) -> 682041.24
A127: Payroll Tax Expenses
A128: Employer Payroll Tax | B128: =B125*0.0765 -> 52462.77588 | D128: =54999.96 -> 54999.96 | F128: =45093 -> 45093
A129: Total Payroll Tax Expenses | B129: =(B127)+(B128) -> 52462.77588 | D129: =(D127)+(D128) -> 54999.96 | F129: =(F127)+(F128) -> 45093
A131: Police Dept Expense
A132: Ammunition | B132: 0 | D132: =2000.04 -> 2000.04 | F132: =2000.04 -> 2000.04
A133: Physicals | B133: 0
A134: Police & Fire Expense | B134: 0
A135: Police Arbitration | B135: 0 | D135: =5000.04 -> 5000.04 | F135: =5000.04 -> 5000.04
A136: Police Capital Expenditure | B136: 0
A137: Police Capital Purchases | B137: =15000 -> 15000 | D137: =32286 -> 32286 | F137: =26229.96 -> 26229.96
A138: Police Clothing Allowance | B138: =2499.96 -> 2499.96 | D138: =4500 -> 4500 | F138: =4149.96 -> 4149.96
A139: Police Communication Expense | B139: =7500 -> 7500 | D139: =6759.96 -> 6759.96 | F139: =7500 -> 7500
A140: Police Court Pay | B140: =7500 -> 7500 | D140: =6000 -> 6000 | F140: =6000 -> 6000
A141: Police Data Processing Software | B141: 0 | D141: =3000 -> 3000 | F141: =3000 -> 3000
A142: Police Gas & Oil | B142: =9000 -> 9000 | D142: =12000 -> 12000 | F142: =12000 -> 12000
A143: Police Pension Expense | B143: 20500
A144: Police Office Expense | D144: =6999.96 -> 6999.96 | F144: =6999.96 -> 6999.96
A145: Police R&M | B145: =6000 -> 6000 | D145: =6500.04 -> 6500.04 | F145: =6500.04 -> 6500.04
A146: Police Seminars & Training | B146: =1200 -> 1200 | D146: =2000.04 -> 2000.04 | F146: =3000 -> 3000
A147: Police Supplies & Materials | B147: 6500.04 | D147: =6999.96 -> 6999.96 | F147: =6000 -> 6000
A148: Total Police Dept Expense | B148: =(((((((((((((((B131)+(B132))+(B133))+(B134))+(B135))+(B136))+(B137))+(B138))+(B139))+(B140))+(B141))+(B142))+(B144))+(B145))+(B146))+(B147)+B143 -> 75700 | D148: =(((((((((((((((D131)+(D132))+(D133))+(D134))+(D135))+(D136))+(D137))+(D138))+(D139))+(D140))+(D141))+(D142))+(D144))+(D145))+(D146))+(D147) -> 94046.04 | F148: =(((((((((((((((F131)+(F132))+(F133))+(F134))+(F135))+(F136))+(F137))+(F138))+(F139))+(F140))+(F141))+(F142))+(F144))+(F145))+(F146))+(F147) -> 88380
A150: Recycling Dept Expense
A151: Recycling Capital Purchases | B151: 0
A152: Recycling Gas & Oil | B152: =10500 -> 10500 | D152: =11000.04 -> 11000.04 | F152: =11000.04 -> 11000.04
A153: Recycling Office & Supplies | B153: =1500 -> 1500
A154: Recycling Repair & Maintenance | B154: =2000.04 -> 2000.04 | D154: =2000.04 -> 2000.04 | F154: =999.96 -> 999.96
A155: Recycling Uniform Allowance | B155: =3500.04 -> 3500.04 | D155: =4203.96 -> 4203.96 | F155: =4204.2 -> 4204.2
A156: Total Recycling Dept Expense | B156: =SUM(B152:B155) -> 17500.08 | D156: =SUM(D152:D155) -> 17204.04 | F156: =SUM(F152:F155) -> 16204.2
A158: Reimbursed Expenses
A159: Cable Pave Cuts Exp | B159: =999.96 -> 999.96 | D159: =999.96 -> 999.96 | F159: =2000.04 -> 2000.04
A160: Fireman's Relief Fund Exp | B160: =27000 -> 27000 | D160: =27522 -> 27522 | F160: =27308 -> 27308
A161: PAWC Pave Cuts Exp | B161: =7500 -> 7500 | D161: =5000.04 -> 5000.04 | F161: =5000.04 -> 5000.04
A162: PFG Road Cuts Exp | B162: =5000.04 -> 5000.04 | D162: =5000.04 -> 5000.04 | F162: =5000.04 -> 5000.04
A163: Reimbursed Storm Water Expense | B163: =16965 -> 16965 | D163: =20000.04 -> 20000.04
A164: Total Reimbursed Expenses | B164: =(((((B158)+(B159))+(B160))+(B161))+(B162))+(B163) -> 57465 | D164: =(((((D158)+(D159))+(D160))+(D161))+(D162))+(D163) -> 58522.08 | F164: =(((((F158)+(F159))+(F160))+(F161))+(F162))+(F163) -> 39308.12
A166: Special Project Expense
A167: Donna's Way Project | B167: =90000 -> 90000
A168: Harding Street Project - Drainage | B168: =80000.04 -> 80000.04
A169: Harding Street Project - Paving | B169: =105999.96 -> 105999.96
A170: Lincoln Park Drainage Project | B170: =57000 -> 57000 | D170: =39999.96 -> 39999.96 | F170: =39999.96 -> 39999.96
A171: Susquehanna Ave - 30% Match | B171: =76500 -> 76500
A172: Engineering Expense | B172: 80000
A173: Washington Ave Project | B173: 0 | D173: =10200 -> 10200 | F173: =10200 -> 10200
A174: Total Special Project Expense | B174: =((((((B166)+(B167))+(B168))+(B169))+(B170))+(B171))+(B173)+(B172) -> 489500 | D174: =((((((D166)+(D167))+(D168))+(D169))+(D170))+(D171))+(D173) -> 50199.96 | F174: =((((((F166)+(F167))+(F168))+(F169))+(F170))+(F171))+(F173) -> 50199.96
A176: Street Dept Expense
A177: Street - General | B177: =6699.96 -> 6699.96 | D177: =300 -> 300 | F177: =300 -> 300
A178: Street Bldg R&M | B178: 0
A179: Street Clothing Allowance | B179: =900 -> 900 | D179: =1500 -> 1500 | F179: =750 -> 750
A180: Street Communication Exp | B180: 0 | D180: =2199.96 -> 2199.96 | F180: =2000.04 -> 2000.04
A181: Street Gas & Oil | B181: =5499.96 -> 5499.96 | D181: =6999.96 -> 6999.96 | F181: =6999.96 -> 6999.96
A182: Street Utilities | B182: =3500.04 -> 3500.04 | D182: =3999.96 -> 3999.96 | F182: =5000.04 -> 5000.04
A183: Street/Sidewalk Transfer (deleted) | B183: 0 | D183: =97200 -> 97200 | F183: =97200 -> 97200
A184: Total Street Dept Expense | B184: =SUM(B177:B183) -> 16599.96 | D184: =SUM(D177:D183) -> 112199.88 | F184: =SUM(F177:F183) -> 112250.04
A186: Zoning Dept Expense
A187: Board Meeting Exp | B187: =300 -> 300 | D187: =300 -> 300 | F187: =300 -> 300
A188: Engineering Services | B188: =2499.96 -> 2499.96 | D188: =3000 -> 3000 | F188: =3000 -> 3000
A189: General Expense | B189: 0 | D189: =2499.96 -> 2499.96 | F189: =2499.96 -> 2499.96
A190: General Inspections | B190: =39999.96 -> 39999.96 | D190: =30000 -> 30000 | F190: =24000 -> 24000
A191: Planning Commission | B191: =500.04 -> 500.04 | D191: =630 -> 630 | F191: =300 -> 300
A192: Road Engineering Services | B192: =9999.96 -> 9999.96 | D192: =3999.96 -> 3999.96 | F192: =3999.96 -> 3999.96
A193: Transcription Services | B193: 0 | D193: =500.04 -> 500.04 | F193: =500.04 -> 500.04
A194: Zoning Advertising | B194: =1500 -> 1500 | D194: =350.04 -> 350.04 | F194: =300 -> 300
A195: Zoning Legal & Professional Fees | B195: =6500.04 -> 6500.04 | D195: =3000 -> 3000 | F195: =2499.96 -> 2499.96
A196: Total Zoning Dept Expense | B196: =SUM(B187:B195) -> 61299.96 | D196: =SUM(D187:D195) -> 44280 | F196: =SUM(F187:F195) -> 37399.92
A198: Total Expenses | B198: =B56+B83+B103+B125+B129+B148+B156+B164+B174+B184+B196 -> 2066147.176 | D198: =D56+D83+D103+D125+D129+D148+D156+D164+D174+D184+D196 -> 1857141.6 | F198: =F56+F83+F103+F125+F129+F148+F156+F164+F174+F184+F196 -> 1895689
A200: Profit / (Loss) | B200: =B50-B198 -> 20996.82412 | D200: =D50-D198 -> 76570.32 | F200: =F50-F198 -> 52158.53

Sheet Exeter Road Fund
A1: Exeter Borough - Road Fund
A2: Year 2022 Budget Proposal
A3: 2021-12-07
B5: Year 2022 | D5: Year 2021 | F5: Year 2020
B6: Proposed Budget | D6: Budget | F6: Budget
A8: Income
A9: Interest Income | B9: 200 | D9: 300 | F9: 200.04
A10: Liquid Fuels | B10: 157000 | D10: 154577 | F10: 171522.74
A11: Beginning Fund Balance | D11: 110000 | F11: 77049.96
A12: Total Income | B12: =SUM(B9:B11) -> 157200 | D12: =SUM(D9:D11) -> 264877 | F12: =SUM(F9:F11) -> 248772.74
A14: Road Fund Expense
A15: Advertising & Miscellaneous | B15: 0 | D15: =500.04+500.04 -> 1000.08 | F15: 1000.08
A16: Capital Purchase - Truck | B16: 17000 | D16: 39999.96 | F16: 39999.96
A17: Curbing & Paving | B17: 20000 | D17: 20000.04 | F17: 11000.04
A18: Engineering Service | B18: 5000 | D18: 9000 | F18: 9999.96
A19: Equipment Maintenance | B19: 15000 | D19: 15000 | F19: 15000
A20: Minor Equipment | B20: 3000 | D20: 9000 | F20: 9999.96
A21: Road Maintenance & Repairs | B21: 3000 | D21: 42999.96 | F21: 42999.96
A22: Road/Street Signs/Markings | B22: 3500 | D22: 3999.96 | F22: 5000.04
A23: Snow & Ice Removal | B23: 12000 | D23: 9999.96 | F23: 9999.96
A24: Street Lighting | B24: 60000 | D24: 64200 | F24: 64200
A25: Vehicle Operating Expense | B25: 1500 | D25: 3000 | F25: 3000
A26: Total Expense | B26: =SUM(B15:B25) -> 140000 | D26: =SUM(D15:D25) -> 218199.96 | F26: =SUM(F15:F25) -> 212199.96
A27: Net Income | B27: =ROUND(B7+B12-B26,5) -> 17200 | D27: =ROUND(D7+D12-D26,5) -> 46677.04 | F27: =ROUND(F7+F12-F26,5) -> 36572.78

Sheet Exeter Refuse Fund
A1: Exeter Borough - Refuse Fund
A2: Year 2022 Budget Proposal
A3: 2021-12-07
B5: Year 2022 | D5: Year 2021 | F5: Year 2020
B6: Proposed Budget | D6: Budget | F6: Budget
A8: Income
A9: Refuse - Reimbursement Resolution 7-12 | B9: 22500 | D9: 22540.2 | F9: 22540.2
A10: Refuse Sticker Revenue | B10: 360000 | D10: 309999.96 | F10: 309999.96
A11: Interest Income | B11: 250 | D11: 699.96 | F11: 699.96
A12: Beginning Fund Balance | D12: 189999.96 | F12: 260000.04
A13: Total Income | B13: =SUM(B9:B12) -> 382750 | D13: =SUM(D9:D12) -> 523240.08 | F13: =SUM(F9:F12) -> 593240.16
A15: Refuse Fund Expense
A16: 430.181 St Dept Communication | B16: 0 | D16: 0 | F16: 0
A17: Advertising | B17: 0 | D17: 249.96 | F17: 249.96
A18: Association Dues | B18: 1200 | D18: 1200 | F18: 0
A19: Building Maintenance | B19: 9000 | D19: 15000 | F19: 15000
A20: Capital Purchases | B20: 45000 | D20: 57500 | F20: 56226.96
A21: Computer Upgrade | B21: 0 | D21: 999.96 | F21: 999.96
A22: Equipment Maintenance | B22: 14500 | D22: 20000.04 | F22: 20000.04
A23: Grants Miscellaneous | B23: 0 | D23: 0 | F23: 56226.96
A24: Materials & Supplies | B24: 0 | D24: 999.96 | F24: 999.96
A25: Miscellaneous | B25: 500 | D25: 200.04 | F25: 200.04
A26: Recycling Processing | B26: 40000 | D26: 39999.96 | F26: 24000
A27: Refuse - Contracted Services | B27: 288700 | D27: 288696 | F27: 287426.4
A28: Transfer of Funds | B28: 0 | D28: -37000 | F28: 36999.96
A29: Total Expense | B29: =SUM(B16:B28) -> 398900 | D29: =SUM(D16:D28) -> 387845.92 | F29: =SUM(F16:F28) -> 498330.24
A30: Net Income | B30: =ROUND(B7+B13-B29,5) -> -16150 | D30: =ROUND(D7+D13-D29,5) -> 135394.16 | F30: =ROUND(F7+F13-F29,5) -> 94909.92

Sheet Exeter Sewer Fund
A1: Exeter Borough - Sewer Fund
A2: Year 2022 Budget Proposal
A3: 2021-12-07
B5: Year 2022 | D5: Year 2021 | F5: Year 2020
B6: Proposed Budget | D6: Budget | F6: Budget
A8: Income
A9: Grant Income | B9: 0 | D9: 1297293 | F9: 1297293
A10: Interest Income | D10: 500.04 | F10: 999.96
A11: Misc | B11: 1000
A12: Sewer Billing | B12: 0 | D12: 542000.04 | F12: 482000.04
A13: Transfer | D13: 174999.96 | F13: 332445.24
A14: WVSA Reimbursement | B14: 0 | D14: 25000 | F14: 25000
A15: WVSA Storm Water | D15: 60000 | F15: 58952.04
A16: Beginning Balance | D16: 70000 | F16: 0
A17: Total Income | B17: =SUM(B9:B16) -> 1000 | D17: =SUM(D9:D16) -> 2169793.04 | F17: =SUM(F9:F16) -> 2196690.28
A19: Sewer Fund Expense
A20: Construction Renovations (Sewer) | B20: 100000 | D20: 200000.04 | F20: 716000.04
A21: General Expense (Sewer) | B21: 2500 | D21: 5000.04 | F21: 9999.96
A22: Billing WVSA (Sewer) | B22: 38000 | D22: 36000 | F22: 36000
A23: Sewer Maintenance (Sewer) | B23: 20000 | D23: 15000 | F23: 15000
A24: Engineering (Sewer) | B24: 82000 | F24: 150000
A25: Capital Purchase (backhoe) | B25: 0 | D25: 28848.12 | F25: 48118.08
A26: Grant Expenditures (Sewer) | B26: 0 | D26: 1630062 | F26: 1630062
A27: Transfers Out (Sewer) | B27: 0 | F27: 25000
A28: Miscellaneous (Sewer) | B28: 0 | D28: 500.04 | F28: 699.96
A29: USDA Debt Service Payment (Sewer) | B29: 254000 | D29: 254220
A30: Total Expense | B30: =SUM(B20:B29) -> 496500 | D30: =SUM(D20:D29) -> 2169630.24 | F30: =SUM(F20:F29) -> 2630880.04
A31: Net Income | B31: =ROUND(B7+B17-B30,5) -> -495500 | D31: =ROUND(D7+D17-D30,5) -> 162.8 | F31: =ROUND(F7+F17-F30,5) -> -434189.76
